bitfinex/quotes_BTCUSD_20240703
["timestamp","ask_amount","ask_price","bid_price","bid_amount"]
[1720021535782,0.1602988,60371.0,60355.0,0.06]
[1720021535783,0.001,60359.0,60355.0,0.06]
[1720021535989,0.001,60359.0,60354.0,0.3625]
[1720021536204,0.06749247,60358.0,60354.0,0.3625]
[1720021536446,0.06749247,60357.0,60354.0,0.3635]
[1720021536573,0.06749247,60356.0,60354.0,0.3635]
[1720021536773,0.01440169,60355.0,60354.0,0.3635]
[1720021536976,0.01440169,60362.0,60354.0,0.3625]
[1720021537181,0.001,60359.0,60354.0,0.3625]
[1720021537417,0.06791979,60358.0,60354.0,0.3625]
[1720021537815,0.06791979,60358.0,60356.0,0.06]
[1720021538051,0.06791979,60358.0,60355.0,0.06]
[1720021538345,0.001,60359.0,60355.0,0.06]
[1720021538541,0.06842414,60358.0,60355.0,0.06]
[1720021538737,0.06842414,60357.0,60355.0,0.06]
[1720021538962,0.06842414,60356.0,60354.0,0.3705]
[1720021539240,0.06792414,60355.0,60354.0,0.3665]
[1720021539479,0.06792414,60355.0,60354.0,0.3625]
[1720021540270,0.01437878,60355.0,60354.0,0.5827988]
[1720021540391,0.00084,60369.0,60362.0,0.06]
[1720021540593,0.05355398,60368.0,60362.0,0.4165]
[1720021540796,0.00084,60369.0,60362.0,0.4165]
[1720021540797,0.05355398,60367.0,60362.0,0.4165]
[1720021541010,0.05355398,60366.0,60362.0,0.4165]
[1720021541206,0.00084,60369.0,60362.0,0.3565]
[1720021541420,0.05323986,60368.0,60362.0,0.3565]
[1720021541647,0.05165004,60367.0,60362.0,0.1919]
[1720021541846,0.05165004,60366.0,60362.0,0.1919]
[1720021542048,0.05165004,60365.0,60362.0,0.1919]
[1720021542293,0.05165004,60364.0,60362.0,0.1929]
[1720021542494,0.05165004,60363.0,60362.0,0.1939]
[1720021542700,0.05165004,60366.0,60362.0,0.1929]
[1720021542906,0.05165004,60366.0,60362.0,0.1919]
[1720021543107,0.05365004,60366.0,60362.0,0.1919]
[1720021543329,0.3865,60363.0,60354.0,0.1888]
[1720021543534,0.2374,60358.0,60354.0,0.1888]
[1720021543740,0.15165004,60357.0,60354.0,0.1888]
[1720021544046,0.05165004,60356.0,60354.0,0.1888]
[1720021544769,0.06154687,60355.0,60354.0,0.1888]
[1720021545578,0.06154687,60355.0,60354.0,0.1988]
[1720021545732,0.06154687,60355.0,60354.0,0.1888]
[1720021545933,0.06154687,60355.0,60354.0,0.1898]
[1720021546144,0.06254687,60355.0,60354.0,0.1998]
[1720021546351,0.06254687,60355.0,60354.0,0.1988]
[1720021546793,0.06254687,60355.0,60354.0,0.2108]
[1720021547209,0.06254687,60355.0,60354.0,0.1988]
[1720021547538,0.06254687,60355.0,60354.0,0.1998]
[1720021547953,0.001,60355.0,60354.0,0.1998]
[1720021548169,0.06265681,60355.0,60354.0,0.1998]
[1720021548385,0.001,60355.0,60354.0,0.1998]
[1720021548582,0.06165811,60355.0,60354.0,0.1898]
[1720021548913,0.06165811,60355.0,60354.0,0.1888]
[1720021549126,0.06165811,60355.0,60354.0,0.1978]
[1720021549328,0.07438522,60363.0,60354.0,0.1978]
[1720021549518,0.07438522,60362.0,60354.0,0.1978]
[1720021549719,0.2374,60358.0,60354.0,0.1888]
[1720021549963,0.17438522,60357.0,60354.0,0.1888]
[1720021550134,0.07438522,60356.0,60354.0,0.1928]
[1720021550317,0.07438522,60355.0,60354.0,0.1928]
[1720021550528,0.07438522,60355.0,60354.0,0.2018]
[1720021551121,0.06577163,60355.0,60354.0,0.2018]
[1720021551584,0.06577754,60355.0,60354.0,0.2018]
[1720021551758,0.01352323,60355.0,60354.0,0.2018]
[1720021551961,0.06577754,60355.0,60354.0,0.1928]
[1720021552164,0.06577754,60355.0,60354.0,0.1888]
[1720021552362,0.01352323,60355.0,60354.0,0.1968]
[1720021552569,0.01452323,60355.0,60354.0,0.2068]
[1720021553094,0.06677754,60355.0,60354.0,0.1988]
[1720021553260,0.06677754,60355.0,60354.0,0.2078]
[1720021554266,0.06738869,60355.0,60354.0,0.2078]
[1720021555874,0.06738869,60355.0,60354.0,0.3680988]
[1720021556007,0.06738869,60355.0,60354.0,0.4280988]
[1720021556399,0.06738869,60355.0,60354.0,0.5789988]
[1720021557443,0.06683933,60355.0,60354.0,0.5789988]
[1720021557847,0.06683933,60355.0,60354.0,0.5168988]
[1720021558898,0.06683933,60355.0,60354.0,0.5768988]
[1720021559047,0.06683933,60355.0,60354.0,0.5168988]
[1720021560335,0.06683933,60355.0,60354.0,0.5768988]
[1720021560541,0.001,60355.0,60354.0,0.5768988]
[1720021560744,0.01452762,60355.0,60354.0,0.5768988]
[1720021560946,0.01460342,60355.0,60354.0,0.5768988]
[1720021561097,0.01460175,60355.0,60354.0,0.5768988]
[1720021561754,0.01460175,60355.0,60354.0,0.8768988]
[1720021562585,0.01460175,60355.0,60354.0,0.5768988]
[1720021562743,0.01460175,60355.0,60354.0,0.8768988]
[1720021562949,0.01460175,60355.0,60354.0,0.5768988]
[1720021563149,0.001,60355.0,60354.0,0.5768988]
[1720021563954,0.001,60355.0,60354.0,0.8768988]
[1720021564366,0.001,60355.0,60354.0,0.5768988]
[1720021565078,0.001,60355.0,60354.0,0.8768988]
[1720021565283,0.001,60355.0,60354.0,0.5768988]
[1720021565464,0.001,60355.0,60354.0,0.95705462]
[1720021565667,0.00084,60369.0,60368.0,0.06]
[1720021565866,0.00084,60369.0,60368.0,0.5667988]
[1720021566677,0.00084,60369.0,60368.0,0.5067988]
[1720021566889,0.00584,60369.0,60368.0,0.5077988]
[1720021567358,0.00584,60369.0,60368.0,0.001]
[1720021567359,1.5209128,60369.0,60368.0,0.001]
[1720021567497,0.306,60361.0,60351.0,0.000924]
[1720021567698,0.2374,60352.0,60351.0,0.000924]
[1720021568001,0.3374,60352.0,60351.0,0.000924]
[1720021568215,0.39954907,60352.0,60351.0,0.000924]
[1720021569215,0.39954907,60352.0,60351.0,0.001924]
[1720021569759,0.39954907,60352.0,60351.0,0.000924]
[1720021570216,0.40054907,60352.0,60351.0,0.006924]
[1720021571211,0.40154907,60352.0,60351.0,0.012924]
[1720021571631,0.72294907,60352.0,60351.0,0.012924]
[1720021571840,1.15139807,60352.0,60351.0,0.012924]
[1720021572016,1.17258007,60352.0,60351.0,0.006924]
[1720021572684,1.12658007,60352.0,60351.0,0.007924]
[1720021573241,1.11158007,60352.0,60351.0,0.000924]
[1720021573446,1.17158007,60352.0,60351.0,0.000924]
[1720021573647,1.18558007,60352.0,60351.0,0.001924]
[1720021574045,1.12558007,60352.0,60351.0,0.001924]
[1720021574270,1.07164207,60352.0,60351.0,0.001924]
[1720021574624,0.85255507,60352.0,60351.0,0.001924]
[1720021574814,0.91255507,60352.0,60351.0,0.001924]
[1720021575021,0.79494907,60352.0,60351.0,0.001924]
[1720021575139,0.72094907,60352.0,60351.0,0.000924]
[1720021575335,0.83855507,60352.0,60351.0,0.000924]
[1720021575652,0.91255507,60352.0,60351.0,0.001924]
[1720021576052,0.89855507,60352.0,60351.0,0.000924]
[1720021576255,1.11697826,60352.0,60351.0,0.000924]
[1720021576621,1.20693073,60352.0,60351.0,0.001924]
[1720021576815,1.22093073,60352.0,60351.0,0.002924]
[1720021577086,1.19293073,60352.0,60351.0,0.000924]
[1720021577281,1.15530869,60352.0,60351.0,0.000924]
[1720021577456,1.09335622,60352.0,60351.0,0.001924]
[1720021578006,1.07935622,60352.0,60351.0,0.000924]
[1720021578404,1.09335622,60352.0,60351.0,0.001924]
[1720021578608,1.40064622,60352.0,60351.0,0.001924]
[1720021578855,1.38664622,60352.0,60351.0,0.000924]
[1720021579262,1.40064622,60352.0,60351.0,0.001924]
[1720021579468,0.97575022,60352.0,60351.0,0.001924]
[1720021579662,1.07332524,60352.0,60351.0,0.001924]
[1720021579844,1.57348024,60352.0,60351.0,0.001924]
[1720021580040,1.58748024,60352.0,60351.0,0.002924]
[1720021580605,1.07530491,60352.0,60351.0,0.002924]
[1720021580896,1.08685387,60352.0,60351.0,0.002924]
[1720021581089,0.06,60346.0,60344.0,0.0002]
[1720021581239,0.3459653,60345.0,60344.0,0.0002]
[1720021581448,0.45630451,60345.0,60344.0,0.0002]
[1720021582969,0.45630451,60345.0,60330.0,0.2149535]
[1720021582970,0.06,60342.0,60330.0,0.2149535]
[1720021583185,0.2374,60335.0,60330.0,0.2149535]
[1720021583394,0.21890451,60334.0,60330.0,0.2149535]
[1720021583606,0.05736628,60333.0,60330.0,0.2149535]
[1720021583825,0.11946298,60332.0,60330.0,0.2149535]
[1720021584029,0.1,60331.0,60330.0,0.2149535]
[1720021584169,0.21946325,60331.0,60330.0,0.2149535]
[1720021585295,0.21946325,60331.0,60330.0,0.2229535]
[1720021585715,0.22046325,60331.0,60330.0,0.2239535]
[1720021585970,0.15836655,60331.0,60330.0,0.2239535]
[1720021586180,0.15836655,60331.0,60330.0,0.6025523]
[1720021586181,0.0103408,60331.0,60330.0,0.6025523]
[1720021586378,0.2374,60345.0,60334.0,0.06]
[1720021586379,0.1,60344.0,60334.0,0.06]
[1720021586583,0.06075186,60343.0,60335.0,0.348]
[1720021586825,0.0498052,60342.0,60335.0,0.348]
[1720021587031,0.0498052,60341.0,60335.0,0.408]
[1720021587202,0.06074469,60340.0,60335.0,0.348]
[1720021587432,0.1,60344.0,60335.0,0.348]
[1720021587433,0.06074469,60339.0,60335.0,0.348]
[1720021587560,0.06074469,60338.0,60335.0,0.348]
[1720021587765,0.06074469,60337.0,60335.0,0.348]
[1720021587962,0.1,60344.0,60335.0,0.348]
[1720021587963,0.01093949,60336.0,60335.0,0.348]
[1720021588369,0.05980825,60336.0,60335.0,0.348]
[1720021589873,0.06480825,60336.0,60335.0,0.348]
[1720021590043,0.06827652,60336.0,60335.0,0.348]
[1720021590674,0.06826095,60336.0,60335.0,0.348]
[1720021591487,0.06826095,60336.0,60335.0,0.64845462]
[1720021591690,0.01933942,60336.0,60335.0,0.94845462]
[1720021592726,0.01433942,60336.0,60335.0,0.94845462]
[1720021593058,0.01133942,60336.0,60335.0,0.94845462]
[1720021593235,0.01233703,60336.0,60335.0,0.94945462]
[1720021593587,0.012337,60336.0,60335.0,0.94945462]
[1720021594092,0.012337,60336.0,60335.0,0.5692988]
[1720021594515,0.012337,60336.0,60335.0,0.5092988]
[1720021594716,0.002,60336.0,60335.0,0.5092988]
[1720021595088,0.002,60336.0,60335.0,0.3499988]
[1720021595327,0.05204734,60336.0,60335.0,0.3499988]
[1720021596264,0.05282487,60336.0,60335.0,0.001]
[1720021596463,0.01233912,60336.0,60335.0,0.001]
[1720021596663,0.0528318,60336.0,60335.0,0.001]
[1720021597527,0.0518318,60336.0,60335.0,0.001]
[1720021597724,0.0518318,60336.0,60330.0,0.0122535]
[1720021597725,0.0508318,60336.0,60330.0,0.0122535]
[1720021597935,0.1,60337.0,60335.0,0.001]
[1720021598146,0.05067622,60336.0,60335.0,0.003]
[1720021598701,0.05067622,60336.0,60335.0,0.002]
[1720021598907,0.20167622,60336.0,60335.0,0.002]
[1720021599138,0.29917622,60336.0,60335.0,0.002]
[1720021599380,0.251,60336.0,60335.0,0.002]
[1720021599554,0.29110535,60336.0,60335.0,0.002]
[1720021599753,0.29110535,60336.0,60330.0,0.0132535]
[1720021599958,0.14010535,60335.0,60330.0,0.0132535]
[1720021600159,0.04010535,60334.0,60330.0,0.0132535]
[1720021600611,0.04010535,60334.0,60330.0,0.0122535]
[1720021602467,0.1,60335.0,60330.0,0.0122535]
[1720021602673,0.03989573,60334.0,60330.0,0.0122535]
[1720021602898,0.03989573,60333.0,60330.0,0.0122535]
[1720021603097,0.03989573,60332.0,60330.0,0.0132535]
[1720021603429,0.03989573,60331.0,60330.0,0.0122535]
[1720021604910,0.03989573,60331.0,60330.0,0.0142535]
[1720021605475,0.04089573,60331.0,60330.0,0.0152535]
[1720021606530,0.04093866,60331.0,60330.0,0.0152535]
[1720021606740,0.04093866,60331.0,60330.0,0.0161775]
[1720021609131,0.001,60331.0,60330.0,0.0161775]
[1720021609336,0.01134027,60331.0,60330.0,0.0161775]
[1720021609741,0.05121945,60331.0,60330.0,0.0161775]
[1720021612329,0.001,60331.0,60330.0,0.0161775]
[1720021612750,0.04070849,60331.0,60330.0,0.0161775]
[1720021612975,0.05104878,60331.0,60330.0,0.0161775]
[1720021615691,0.05100453,60331.0,60330.0,0.0161775]
[1720021618597,0.04066427,60331.0,60330.0,0.0161775]
[1720021619465,0.0403906,60331.0,60330.0,0.0161775]
[1720021620238,0.0403906,60331.0,60330.0,0.1720775]
[1720021620597,0.05073069,60331.0,60330.0,0.1720775]
[1720021621362,0.05077008,60331.0,60330.0,0.1720775]
[1720021622668,0.04042999,60331.0,60330.0,0.1720775]
[1720021623669,0.05077001,60331.0,60330.0,0.1720775]
[1720021624589,0.001,60331.0,60330.0,0.0161775]
[1720021624742,0.040284,60331.0,60330.0,0.0161775]
[1720021627967,0.03975331,60331.0,60330.0,0.0161775]
[1720021628167,0.03975331,60331.0,60330.0,0.56829131]
[1720021628475,0.001,60331.0,60330.0,0.8649763]
[1720021628860,0.001,60331.0,60330.0,0.5649763]
[1720021629287,0.0001,60336.0,60335.0,0.06]
[1720021629484,0.0001,60336.0,60335.0,0.5649988]
[1720021629883,0.0001,60336.0,60335.0,0.5049988]
[1720021630233,0.03113544,60336.0,60335.0,0.5049988]
[1720021630550,0.03113544,60336.0,60335.0,0.5649988]
[1720021630853,0.03113544,60336.0,60332.0,0.3417]
[1720021631064,0.03113544,60336.0,60333.0,0.1602988]
[1720021631065,0.03103544,60335.0,60333.0,0.1602988]
[1720021631220,0.0001,60336.0,60335.0,0.002]
[1720021631221,0.0011,60336.0,60335.0,0.002]
[1720021631424,0.03135319,60336.0,60335.0,0.002]
[1720021631631,0.0011,60336.0,60335.0,0.002]
[1720021631838,0.03023407,60336.0,60335.0,0.002]
[1720021632769,0.03123407,60336.0,60335.0,0.008]
[1720021633523,0.03023407,60336.0,60335.0,0.006]
[1720021633923,0.03023407,60336.0,60335.0,0.002]
[1720021633924,0.02923407,60336.0,60335.0,0.002]
[1720021634125,0.0001,60336.0,60331.0,0.06]
[1720021634438,0.0001,60336.0,60335.0,0.008]
[1720021634637,0.0001,60336.0,60335.0,0.3996]
[1720021635070,0.0001,60336.0,60335.0,0.5598988]
[1720021635274,0.02847581,60349.0,60339.0,0.06]
[1720021635475,0.02878195,60348.0,60336.0,0.0599]
[1720021635650,0.0002,60344.0,60336.0,0.1902988]
[1720021635837,0.02878195,60343.0,60336.0,0.1902988]
[1720021636037,0.02878195,60342.0,60336.0,0.1902988]
[1720021636261,0.02878195,60341.0,60336.0,0.1902988]
[1720021636465,0.02878195,60340.0,60336.0,0.1902988]
[1720021636670,0.0002,60346.0,60336.0,0.1902988]
[1720021636671,0.02878195,60339.0,60336.0,0.1902988]
[1720021636868,0.0002,60348.0,60336.0,0.1902988]
[1720021637062,0.0002,60344.0,60339.0,0.001]
[1720021637294,0.02864482,60343.0,60336.0,0.1601988]
[1720021637494,0.02864482,60343.0,60336.0,0.1900988]
[1720021637733,0.02864482,60342.0,60336.0,0.1900988]
[1720021637889,0.12847581,60349.0,60336.0,0.002]
[1720021637890,0.02864482,60341.0,60336.0,0.002]
[1720021638089,0.02884482,60340.0,60336.0,0.002]
[1720021638295,0.02864482,60339.0,60332.0,0.3371]
[1720021638557,0.1501,60341.0,60332.0,0.3371]
[1720021638558,0.02864482,60338.0,60332.0,0.3371]
[1720021638672,0.02864482,60337.0,60332.0,0.3371]
[1720021638880,0.02864482,60336.0,60332.0,0.3371]
[1720021639079,0.1,60340.0,60332.0,0.3371]
[1720021639296,0.033772,60339.0,60330.0,0.0131775]
[1720021639493,0.1,60340.0,60330.0,0.1734763]
[1720021639494,0.033772,60338.0,60330.0,0.1734763]
[1720021639722,0.0001,60331.0,60330.0,0.1734763]
[1720021640789,0.0001,60331.0,60330.0,0.1764763]
[1720021641059,0.0001,60331.0,60330.0,0.1734763]
[1720021641291,0.0011,60331.0,60330.0,0.1774763]
[1720021641491,0.0021,60331.0,60330.0,0.1834763]
[1720021642191,0.0021,60331.0,60330.0,0.2134763]
[1720021644317,0.0021,60331.0,60330.0,0.21679109]
[1720021644508,0.11401962,60345.0,60337.0,0.03]
[1720021644729,0.03909725,60344.0,60338.0,0.193]
[1720021644950,0.11401962,60345.0,60338.0,0.193]
[1720021644951,0.03909725,60343.0,60338.0,0.193]
[1720021645111,0.03909725,60342.0,60338.0,0.193]
[1720021645316,0.03909725,60341.0,60338.0,0.193]
[1720021645515,0.03909725,60340.0,60338.0,0.193]
[1720021645682,0.11401962,60345.0,60338.0,0.193]
[1720021645683,0.03909725,60339.0,60338.0,0.193]
[1720021646801,0.03909725,60339.0,60338.0,0.1929]
[1720021647001,0.0386115,60339.0,60338.0,0.1929]
[1720021648165,0.0386115,60339.0,60338.0,0.1949]
[1720021648363,0.0386115,60339.0,60338.0,0.1969]
[1720021648637,0.0386115,60339.0,60338.0,0.004]
[1720021650035,0.0386115,60339.0,60338.0,0.032]
[1720021650242,0.0386115,60339.0,60338.0,0.5191988]
[1720021650454,0.1432,60352.0,60343.0,0.03]
[1720021650738,0.13155213,60351.0,60343.0,0.03]
[1720021650988,0.03155213,60350.0,60343.0,0.03]
[1720021651190,0.03155213,60349.0,60341.0,0.03]
[1720021651397,0.03155213,60348.0,60341.0,0.1902988]
[1720021651604,0.03155213,60347.0,60341.0,0.1902988]
[1720021651809,0.03155213,60346.0,60341.0,0.1602988]
[1720021652013,0.03155213,60345.0,60343.0,0.001]
[1720021652264,0.03155213,60344.0,60343.0,0.001]
[1720021652472,0.03155213,60350.0,60343.0,0.001]
[1720021652883,0.03155213,60350.0,60343.0,0.031]
[1720021653297,0.03261087,60349.0,60343.0,0.03]
[1720021653448,0.03261087,60348.0,60346.0,0.03]
[1720021653643,0.03261087,60348.0,60347.0,0.3388]
[1720021653644,0.003,60348.0,60347.0,0.3388]
[1720021653851,0.03560463,60348.0,60347.0,0.3388]
[1720021654219,0.03260463,60348.0,60347.0,0.3388]
[1720021655650,0.03260463,60348.0,60347.0,0.3396]
[1720021655999,0.003,60350.0,60349.0,0.03]
[1720021656204,0.003,60350.0,60349.0,0.90805462]
[1720021656349,0.003,60350.0,60349.0,1.40847486]
[1720021656778,0.00084,60368.0,60360.0,0.03]
[1720021656982,0.00084,60368.0,60362.0,0.3376]
[1720021656983,0.0268056,60367.0,60362.0,0.3376]
[1720021657202,0.00084,60368.0,60362.0,0.4978988]
[1720021657203,0.0268056,60366.0,60362.0,0.4978988]
[1720021657408,0.0268056,60365.0,60362.0,0.4978988]
[1720021657633,0.00084,60368.0,60362.0,0.4978988]
[1720021657843,0.02592343,60367.0,60357.0,0.194]
[1720021658043,0.00084,60368.0,60357.0,0.194]
[1720021658044,0.02592343,60366.0,60358.0,0.1602988]
[1720021658244,0.02592343,60366.0,60349.0,0.60526272]
[1720021658245,0.0002,60363.0,60351.0,0.194]
[1720021658420,0.02592343,60362.0,60352.0,0.1902988]
[1720021658623,0.1505,60364.0,60353.0,0.03]
[1720021658624,0.02592343,60361.0,60353.0,0.03]
[1720021658829,0.02592343,60360.0,60353.0,0.1902988]
[1720021659036,0.02592343,60359.0,60353.0,0.1602988]
[1720021659232,0.0002,60357.0,60348.0,0.03]
[1720021659606,0.2602988,60363.0,60344.0,0.0599]
[1720021659607,0.1424,60351.0,60344.0,0.0599]
[1720021659849,0.1424,60351.0,60344.0,0.2201988]
[1720021660255,0.02566673,60350.0,60344.0,0.2201988]
[1720021660456,0.1424,60351.0,60344.0,0.2201988]
[1720021660655,0.02566546,60350.0,60344.0,0.1602988]
[1720021660861,0.0256682,60349.0,60337.0,0.0599]
[1720021661068,0.1,60350.0,60336.0,0.3304]
[1720021661069,0.0256682,60348.0,60339.0,0.0599]
[1720021661236,0.1,60350.0,60340.0,0.1602988]
[1720021661439,0.02557809,60349.0,60340.0,0.1602988]
[1720021661641,0.02557809,60348.0,60340.0,0.1602988]
[1720021661902,0.1,60350.0,60340.0,0.1602988]
[1720021662108,0.1557,60356.0,60336.0,0.3304]
[1720021662109,0.02557838,60349.0,60336.0,0.3304]
[1720021662309,0.16,60355.0,60344.0,0.008]
[1720021662310,0.17387838,60348.0,60344.0,0.008]
[1720021662480,0.1,60347.0,60344.0,0.008]
[1720021662644,0.12554779,60347.0,60344.0,0.008]
[1720021662848,0.02554779,60346.0,60344.0,0.008]
[1720021663683,0.02554779,60346.0,60344.0,0.007]
[1720021663927,0.02544779,60346.0,60344.0,0.007]
[1720021664134,0.1,60347.0,60344.0,0.007]
[1720021664262,0.1,60347.0,60338.0,0.0599]
[1720021664451,0.001,60346.0,60338.0,0.0599]
[1720021664662,0.002,60346.0,60338.0,0.0599]
[1720021665076,0.001,60346.0,60338.0,0.0599]
[1720021665478,0.103,60347.0,60338.0,0.0599]
[1720021665704,0.103,60347.0,60339.0,0.0599]
[1720021665905,0.103,60347.0,60338.0,0.0599]
[1720021666842,0.1,60347.0,60338.0,0.0599]
[1720021667005,0.001,60346.0,60338.0,0.0599]
[1720021667380,0.1,60347.0,60338.0,0.0599]
[1720021667579,0.001,60346.0,60333.0,0.0599]
[1720021667785,0.001,60346.0,60336.0,0.0599]
[1720021667981,0.001,60346.0,60336.0,0.2201988]
[1720021668201,0.001,60346.0,60332.0,0.1539]
[1720021668396,0.103,60347.0,60332.0,0.1539]
[1720021668397,0.1,60347.0,60333.0,0.1602988]
[1720021668756,0.106,60347.0,60333.0,0.1602988]
[1720021669922,0.103,60347.0,60333.0,0.1602988]
[1720021670330,0.06,60346.0,60330.0,0.0130775]
[1720021670548,0.1659,60347.0,60330.0,0.0130775]
[1720021670771,0.1629,60347.0,60330.0,0.0130775]
[1720021670970,0.1599,60347.0,60330.0,0.0130775]
[1720021671186,0.001,60346.0,60330.0,0.0130775]
[1720021671462,0.1639,60347.0,60330.0,0.0130775]
[1720021671463,0.0999,60347.0,60330.0,0.0130775]
[1720021671814,0.007,60346.0,60331.0,0.1886]
[1720021672013,0.02953176,60346.0,60331.0,0.1876]
[1720021672227,0.02953104,60345.0,60331.0,0.1876]
[1720021672443,0.02953104,60344.0,60331.0,0.1886]
[1720021672647,0.02953104,60343.0,60331.0,0.1886]
[1720021672848,0.02953104,60342.0,60331.0,0.1886]
[1720021673208,0.02953104,60341.0,60331.0,0.001]
[1720021673408,0.1539,60339.0,60331.0,0.001]
[1720021673740,0.02953104,60338.0,60331.0,0.001]
[1720021674251,0.1539,60339.0,60331.0,0.001]
[1720021674455,0.1539,60339.0,60331.0,0.0011]
[1720021674659,0.06,60338.0,60331.0,0.0011]
[1720021674886,0.06,60334.0,60331.0,0.0011]
[1720021675082,0.1539,60333.0,60331.0,0.0001]
[1720021675301,0.1,60332.0,60331.0,0.0011]
[1720021675501,0.12139,60332.0,60331.0,0.0021]
[1720021675709,0.1,60332.0,60331.0,0.0011]
[1720021675907,0.1,60332.0,60331.0,0.0021]
[1720021676108,0.3202988,60332.0,60331.0,0.0021]
[1720021676311,0.4884988,60332.0,60331.0,0.0021]
[1720021676510,0.4884988,60332.0,60331.0,0.0011]
[1720021677328,0.4284988,60332.0,60331.0,0.002013]
[1720021677557,0.4284988,60332.0,60331.0,0.001013]
[1720021678183,0.2592,60332.0,60331.0,0.001013]
[1720021678734,0.2732,60332.0,60331.0,0.001013]
[1720021679676,0.128,60332.0,60331.0,0.001013]
[1720021679900,0.028,60332.0,60331.0,0.001013]
[1720021682739,0.006,60332.0,60331.0,0.08116882]
[1720021684941,0.006,60332.0,60331.0,0.14106882]
[1720021685163,0.006,60332.0,60331.0,0.30136762]
[1720021685371,0.006,60332.0,60331.0,0.62556762]
[1720021686367,0.003,60332.0,60331.0,0.62556762]
[1720021686830,0.004,60332.0,60331.0,0.4865118]
[1720021687244,0.004,60332.0,60331.0,0.002013]
[1720021687407,0.003,60332.0,60331.0,0.001013]
[1720021687619,0.0002,60338.0,60331.0,0.001013]
[1720021688100,0.001,60332.0,60331.0,0.003013]
[1720021688204,0.0002,60338.0,60331.0,0.001013]
[1720021688411,0.001,60332.0,60331.0,0.002013]
[1720021688610,0.002,60332.0,60331.0,0.004013]
[1720021688816,0.002,60332.0,60331.0,0.002013]
[1720021689312,0.002,60332.0,60331.0,0.004013]
[1720021689511,0.001,60332.0,60331.0,0.002013]
[1720021689712,0.0002,60338.0,60331.0,0.001013]
[1720021690000,0.02575084,60337.0,60331.0,0.001013]
[1720021690216,0.02575084,60337.0,60335.0,0.08015582]
[1720021690402,0.02575015,60336.0,60335.0,0.08015582]
[1720021690565,0.02575015,60336.0,60335.0,0.22175582]
[1720021690887,0.0002,60338.0,60335.0,0.22175582]
[1720021691364,0.02582765,60337.0,60335.0,0.22175582]
[1720021691607,0.0002,60338.0,60336.0,0.1656]
[1720021691862,0.02648148,60337.0,60336.0,0.1656]
[1720021693827,0.02648148,60337.0,60336.0,0.1666]
[1720021694247,0.02634042,60337.0,60336.0,0.1666]
[1720021694447,0.02634042,60337.0,60336.0,0.1686]
[1720021694883,0.02641149,60337.0,60336.0,0.1686]
[1720021695303,0.02641149,60337.0,60336.0,0.003]
[1720021697519,0.0256275,60337.0,60336.0,0.003]
[1720021697799,0.0002,60338.0,60336.0,0.003]
[1720021698007,0.02562691,60337.0,60336.0,0.003]
[1720021698732,0.02562691,60337.0,60336.0,0.002]
[1720021700416,0.02562691,60337.0,60336.0,0.003]
[1720021700622,0.0002,60338.0,60336.0,0.003]
[1720021700829,0.04947901,60337.0,60336.0,0.003]
[1720021701037,0.04947901,60337.0,60336.0,0.002]
[1720021701455,0.04947901,60337.0,60336.0,0.003]
[1720021701864,0.04947901,60337.0,60336.0,0.001]
[1720021702074,0.1,60337.0,60333.0,0.00264731]
[1720021702268,0.1,60337.0,60336.0,0.002]
[1720021702466,0.1,60337.0,60333.0,0.00264731]
[1720021702670,0.0987,60337.0,60333.0,0.00264731]
[1720021702896,0.1007,60337.0,60334.0,0.00264731]
[1720021703064,0.002,60337.0,60336.0,0.00264731]
[1720021704198,0.004,60337.0,60336.0,0.00264731]
[1720021704518,0.004,60337.0,60335.0,0.00264731]
[1720021704664,0.002,60337.0,60334.0,0.00264731]
[1720021704865,0.002,60337.0,60336.0,0.001]
[1720021704866,0.003,60337.0,60336.0,0.001]
[1720021705072,0.005,60337.0,60336.0,0.001]
[1720021705310,0.0103,60341.0,60333.0,0.00264731]
[1720021705704,0.0103,60341.0,60336.0,0.004]
[1720021705948,0.0103,60341.0,60333.0,0.00264731]
[1720021706314,0.0001,60337.0,60334.0,0.004]
[1720021706717,0.0001,60337.0,60335.0,0.00264731]
[1720021706919,0.0001,60337.0,60335.0,0.004]
[1720021707338,0.0001,60337.0,60333.0,0.00264731]
[1720021707537,0.0001,60337.0,60332.0,0.00264731]
[1720021707745,0.0001,60337.0,60334.0,0.004]
[1720021708157,0.0001,60337.0,60333.0,0.00264731]
[1720021708562,0.0001,60337.0,60335.0,0.004]
[1720021709053,0.0001,60337.0,60333.0,0.004]
[1720021709457,0.0001,60337.0,60334.0,0.004]
[1720021709649,0.0001,60337.0,60333.0,0.004]
[1720021710147,0.01378741,60336.0,60335.0,0.001]
[1720021710911,0.01378737,60336.0,60335.0,0.001]
[1720021711620,0.01378737,60336.0,60331.0,0.001013]
[1720021711822,0.03,60334.0,60333.0,0.001]
[1720021712021,0.01378737,60334.0,60333.0,0.001]
[1720021712233,0.01378737,60334.0,60331.0,0.001013]
[1720021712467,0.01378737,60333.0,60331.0,0.001013]
[1720021712692,0.01378737,60332.0,60331.0,0.001013]
[1720021712946,0.01378737,60335.0,60331.0,0.001013]
[1720021713113,0.01378737,60334.0,60331.0,0.001013]
[1720021713316,0.01378737,60333.0,60331.0,0.001013]
[1720021713518,0.01378737,60332.0,60331.0,0.001013]
[1720021713716,0.01814128,60332.0,60331.0,0.001013]
[1720021713916,0.08571943,60335.0,60331.0,0.004013]
[1720021714889,0.01814128,60334.0,60331.0,0.007013]
[1720021715090,0.01814128,60333.0,60331.0,0.007013]
[1720021715348,0.01814128,60332.0,60331.0,0.004013]
[1720021715698,0.01814128,60332.0,60331.0,0.001013]
[1720021716396,0.03000659,60332.0,60331.0,0.001013]
[1720021716494,0.04050659,60332.0,60331.0,0.001013]
[1720021716854,0.08955877,60332.0,60331.0,0.001013]
[1720021717007,0.20770005,60332.0,60331.0,0.001013]